fUST/lending_fUST_20260119
["ID","MTS","AMOUNT","RATE_DAILY","PERIOD"]
[402666813,1768773040193,-467.009971,0.00016438,2]
[402666814,1768773040202,-151.0,0.00016438,2]
[402666815,1768773040211,-467.009971,0.00016438,2]
[402666816,1768773040220,-151.0,0.00016438,2]
[402666817,1768773040229,-235.32318,0.00016438,2]
[402666818,1768773040238,-467.009971,0.00016438,2]
[402666819,1768773040248,-151.0,0.00016438,2]
[402666820,1768773040257,-151.0,0.00016438,2]
[402666821,1768773040267,-467.009971,0.00016438,2]
[402666822,1768773040275,-151.0,0.00016438,2]
[402666823,1768773040285,-164.04551,0.00016438,2]
[402666824,1768773040295,-467.009971,0.00016438,2]
[402666825,1768773040305,-258.905432,0.00016438,2]
[402666826,1768773040315,-467.009971,0.00016438,2]
[402666827,1768773040324,-467.009971,0.00016438,2]
[402666828,1768773040333,-467.009971,0.00016438,2]
[402666829,1768773040343,-467.009971,0.00016438,2]
[402666831,1768773040353,-467.009971,0.00016438,2]
[402666833,1768773040362,-467.009971,0.00016438,2]
[402666834,1768773040373,-467.009969,0.00016438,2]
[402666835,1768773040383,-242.796917,0.00016438,2]
[402666836,1768773040392,-242.796917,0.00016438,2]
[402666837,1768773040401,-242.796917,0.00016438,2]
[402666838,1768773040411,-242.796917,0.00016438,2]
[402666839,1768773040420,-242.796917,0.00016438,2]
[402666840,1768773040430,-242.796917,0.00016438,2]
[402666841,1768773040439,-242.796917,0.00016438,2]
[402666842,1768773040449,-242.796917,0.00016438,2]
[402666843,1768773040458,-242.796917,0.00016438,2]
[402666844,1768773040467,-242.796917,0.00016438,2]
[402666845,1768773040476,-242.796917,0.00016438,2]
[402666847,1768773040487,-242.796917,0.00016438,2]
[402666848,1768773040496,-242.796917,0.00016438,2]
[402666849,1768773040506,-242.796917,0.00016438,2]
[402666850,1768773040516,-242.796917,0.00016438,2]
[402666851,1768773040526,-242.796917,0.00016438,2]
[402666852,1768773040536,-242.796917,0.00016438,2]
[402666853,1768773040546,-242.796917,0.00016438,2]
[402666854,1768773040556,-242.796917,0.00016438,2]
[402666855,1768773040565,-151.0,0.00016438,2]
[402666856,1768773040575,-242.796908,0.00016438,2]
[402666857,1768773040585,-151.0,0.00016438,2]
[402666859,1768773040593,-151.0,0.00016438,2]
[402666860,1768773040602,-151.0,0.00016438,2]
[402666861,1768773040612,-282.158373,0.00016438,2]
[402666862,1768773040621,-151.0,0.00016438,2]
[402666863,1768773040630,-151.0,0.00016438,2]
[402666864,1768773040639,-151.0,0.00016438,2]
[402666865,1768773040649,-204.29308,0.00016438,2]
[402666867,1768773040658,-151.0,0.00016438,2]
[402666868,1768773040667,-151.0,0.00016438,2]
[402666869,1768773040676,-151.0,0.00016438,2]
[402666870,1768773040685,-151.0,0.00016438,2]
[402666871,1768773040694,-151.0,0.00016438,2]
[402666872,1768773040703,-151.0,0.00016438,2]
[402666873,1768773040713,-203.701629,0.00016438,2]
[402666875,1768773040722,-151.0,0.00016438,2]
[402666877,1768773040732,-203.701629,0.00016438,2]
[402666879,1768773040741,-151.0,0.00016438,2]
[402666881,1768773040750,-203.701629,0.00016438,2]
[402666883,1768773040760,-151.0,0.00016438,2]
[402666885,1768773040769,-151.0,0.00016438,2]
[402666887,1768773040779,-151.0,0.00016438,2]
[402666889,1768773040788,-151.0,0.00016438,2]
[402666891,1768773040798,-203.701629,0.00016438,2]
[402666893,1768773040808,-151.0,0.00016438,2]
[402666895,1768773040817,-151.0,0.00016438,2]
[402666897,1768773040826,-203.701629,0.00016438,2]
[402666899,1768773040836,-151.0,0.00016438,2]
[402666901,1768773040845,-159.633549,0.00016438,2]
[402666902,1768773040854,-203.701629,0.00016438,2]
[402666904,1768773040863,-151.0,0.00016438,2]
[402666905,1768773040872,-203.701629,0.00016438,2]
[402666906,1768773040881,-151.0,0.00016438,2]
[402666907,1768773040890,-203.701629,0.00016438,2]
[402666908,1768773040900,-203.701629,0.00016438,2]
[402666909,1768773040910,-151.0,0.00016438,2]
[402666910,1768773040920,-203.701629,0.00016438,2]
[402666911,1768773040929,-151.0,0.00016438,2]
[402666912,1768773040939,-203.701629,0.00016438,2]
[402666913,1768773040948,-268.851731,0.00016438,2]
[402666914,1768773040958,-203.701629,0.00016438,2]
[402666915,1768773040969,-203.701629,0.00016438,2]
[402666916,1768773040979,-203.701629,0.00016438,2]
[402666917,1768773041137,-203.701629,0.00016438,2]
[402666918,1768773041147,-203.701629,0.00016438,2]
[402666919,1768773041158,-203.701629,0.00016438,2]
[402666920,1768773041167,-203.701629,0.00016438,2]
[402666921,1768773041177,-203.701629,0.00016438,2]
[402666922,1768773041186,-203.701622,0.00016438,2]
[402666923,1768773041195,-177.718394,0.00016438,2]
[402666924,1768773041207,-177.718394,0.00016438,2]
[402666925,1768773041216,-177.718394,0.00016438,2]
[402666926,1768773041226,-177.718394,0.00016438,2]
[402666927,1768773041238,-1869.885141,0.00016438,2]
[402666928,1768773041248,-177.718394,0.00016438,2]
[402666929,1768773041257,-1869.885141,0.00016438,2]
[402666930,1768773041267,-177.718394,0.00016438,2]
[402666931,1768773041277,-151.0,0.00016438,2]
[402666932,1768773041287,-1869.885141,0.00016438,2]
[402666933,1768773041296,-177.718394,0.00016438,2]
[402666934,1768773041305,-1869.885141,0.00016438,2]
[402666935,1768773041314,-151.0,0.00016438,2]
[402666936,1768773041323,-177.718394,0.00016438,2]
[402666937,1768773041332,-1869.885141,0.00016438,2]
[402666938,1768773041341,-246.698735,0.00016438,2]
[402666939,1768773041351,-177.718394,0.00016438,2]
[402666940,1768773041361,-1869.885141,0.00016438,2]
[402666941,1768773041371,-177.718394,0.00016438,2]
[402666942,1768773041380,-1869.885141,0.00016438,2]
[402666943,1768773041390,-177.718394,0.00016438,2]
[402666944,1768773041400,-1869.885141,0.00016438,2]
[402666945,1768773041410,-177.718394,0.00016438,2]
[402666946,1768773041420,-1869.885141,0.00016438,2]
[402666947,1768773041429,-1869.885141,0.00016438,2]
[402666948,1768773041439,-177.718394,0.00016438,2]
[402666949,1768773041449,-1869.885141,0.00016438,2]
[402666950,1768773041458,-177.718394,0.00016438,2]
[402666951,1768773041470,-1869.885141,0.00016438,2]
[402666952,1768773041480,-177.718394,0.00016438,2]
[402666953,1768773041490,-1869.885141,0.00016438,2]
[402666954,1768773041500,-177.718394,0.00016438,2]
[402666955,1768773041510,-1869.885141,0.00016438,2]
[402666956,1768773041519,-177.718394,0.00016438,2]
[402666957,1768773041529,-177.718394,0.00016438,2]
[402666958,1768773041538,-151.0,0.00016438,2]
[402666959,1768773041548,-1869.885141,0.00016438,2]
[402666960,1768773041557,-177.718394,0.00016438,2]
[402666961,1768773041570,-151.0,0.00016438,2]
[402666962,1768773041580,-1869.885141,0.00016438,2]
[402666963,1768773041590,-177.718384,0.00016438,2]
[402666964,1768773041601,-151.0,0.00016438,2]
[402666965,1768773041612,-1869.885141,0.00016438,2]
[402666966,1768773041622,-151.0,0.00016438,2]
[402666967,1768773041631,-1869.885141,0.00016438,2]
[402666968,1768773041641,-151.0,0.00016438,2]
[402666969,1768773041651,-1869.885141,0.00016438,2]
[402666970,1768773041661,-151.0,0.00016438,2]
[402666971,1768773041671,-1869.885145,0.00016438,2]
[402666972,1768773041681,-151.0,0.00016438,2]
[402666973,1768773041691,-151.0,0.00016438,2]
[402666974,1768773041700,-151.0,0.00016438,2]
[402666975,1768773041709,-151.0,0.00016438,2]
[402666976,1768773041719,-151.0,0.00016438,2]
[402666977,1768773041728,-151.0,0.00016438,2]
[402666978,1768773041737,-194.297621,0.00016438,2]
[402666979,1768773041747,-243.888532,0.00016438,2]
[402666980,1768773041757,-243.888532,0.00016438,2]
[402666981,1768773041766,-243.888532,0.00016438,2]
[402666982,1768773041775,-243.888532,0.00016438,2]
[402666983,1768773041785,-243.888532,0.00016438,2]
[402666984,1768773041794,-243.888532,0.00016438,2]
[402666985,1768773041804,-243.888532,0.00016438,2]
[402666986,1768773041814,-243.888532,0.00016438,2]
[402666987,1768773041823,-243.888532,0.00016438,2]
[402666988,1768773041832,-243.888532,0.00016438,2]
[402666989,1768773041842,-243.888532,0.00016438,2]
[402666990,1768773041852,-243.888532,0.00016438,2]
[402666991,1768773041862,-243.888532,0.00016438,2]
[402666992,1768773041873,-243.888532,0.00016438,2]
[402666993,1768773041882,-243.888532,0.00016438,2]
[402666994,1768773041892,-243.888532,0.00016438,2]
[402666995,1768773041902,-243.888532,0.00016438,2]
[402666996,1768773041912,-243.888532,0.00016438,2]
[402666997,1768773041921,-243.888532,0.00016438,2]
[402666998,1768773041931,-243.888525,0.00016438,2]
[402666999,1768773041941,-151.0,0.00016438,2]
[402667000,1768773041951,-151.0,0.00016438,2]
[402667001,1768773041962,-151.0,0.00016438,2]
[402667002,1768773041971,-151.0,0.00016438,2]
[402667003,1768773041981,-151.0,0.00016438,2]
[402667004,1768773041991,-151.0,0.00016438,2]
[402667005,1768773042000,-151.0,0.00016438,2]
[402667006,1768773042010,-151.0,0.00016438,2]
[402667007,1768773042020,-279.276132,0.00016438,2]
[402667008,1768773042029,-602.433097,0.00016438,2]
[402667009,1768773042040,-602.433097,0.00016438,2]
[402667010,1768773042051,-602.433097,0.00016438,2]
[402667011,1768773042062,-602.433097,0.00016438,2]
[402667012,1768773042072,-602.433097,0.00016438,2]
[402667013,1768773042081,-602.433097,0.00016438,2]
[402667014,1768773042090,-602.433097,0.00016438,2]
[402667015,1768773042100,-602.433097,0.00016438,2]
[402667016,1768773042109,-602.433097,0.00016438,2]
[402667017,1768773042120,-602.433097,0.00016438,2]
[402667018,1768773042129,-602.433097,0.00016438,2]
[402667019,1768773042139,-602.433097,0.00016438,2]
[402667020,1768773042148,-602.433097,0.00016438,2]
[402667021,1768773042159,-602.433097,0.00016438,2]
[402667022,1768773042168,-602.433097,0.00016438,2]
[402667023,1768773042178,-602.433097,0.00016438,2]
[402667024,1768773042187,-602.433097,0.00016438,2]
[402667025,1768773042196,-602.433097,0.00016438,2]
[402667026,1768773042205,-602.433097,0.00016438,2]
[402667027,1768773042215,-602.433101,0.00016438,2]
[402667028,1768773042226,-151.60947319,0.00016438,2]
[402667029,1768773042236,-151.0,0.00016438,2]
[402667030,1768773042248,-151.0,0.00016438,2]
[402667031,1768773042259,-151.0,0.00016438,2]
[402667032,1768773042268,-151.0,0.00016438,2]
[402667033,1768773042277,-230.148758,0.00016438,2]
[402667034,1768773042287,-159.620535,0.00016438,2]
[402667035,1768773042297,-151.0,0.00016438,2]
[402667036,1768773042306,-151.0,0.00016438,2]
[402667037,1768773042316,-151.0,0.00016438,2]
[402667038,1768773042325,-151.0,0.00016438,2]
[402667039,1768773042334,-151.0,0.00016438,2]
[402667040,1768773042344,-151.0,0.00016438,2]
[402667041,1768773042353,-151.878082,0.00016438,2]
[402667042,1768773042363,-151.0,0.00016438,2]
[402667043,1768773042372,-231.136394,0.00016438,2]
[402667044,1768773042381,-151.0,0.00016438,2]
[402667045,1768773042391,-151.0,0.00016438,2]
[402667046,1768773042400,-151.0,0.00016438,2]
[402667047,1768773042409,-151.0,0.00016438,2]
[402667048,1768773042419,-151.0,0.00016438,2]
[402667049,1768773042428,-151.0,0.00016438,2]
[402667050,1768773042437,-224.656238,0.00016438,2]
[402667051,1768773042447,-151.0,0.00016438,2]
[402667052,1768773042456,-151.0,0.00016438,2]
[402667053,1768773042465,-151.0,0.00016438,2]
[402667054,1768773042474,-151.0,0.00016438,2]
[402667055,1768773042482,-151.0,0.00016438,2]
[402667056,1768773042491,-151.0,0.00016438,2]
[402667057,1768773042500,-151.0,0.00016438,2]
[402667058,1768773042509,-151.0,0.00016438,2]
[402667059,1768773042519,-151.0,0.00016438,2]
[402667060,1768773042529,-151.0,0.00016438,2]
[402667061,1768773042537,-151.0,0.00016438,2]
[402667062,1768773042547,-151.0,0.00016438,2]
[402667063,1768773042556,-151.0,0.00016438,2]
[402667064,1768773042565,-221.05236,0.00016438,2]
[402667065,1768773042574,-150.07125105,0.00016438,2]
[402667066,1768773042584,-226.321219,0.00016438,2]
[402667067,1768773042594,-226.321219,0.00016438,2]
[402667068,1768773042603,-226.321219,0.00016438,2]
[402667069,1768773042613,-226.321219,0.00016438,2]
[402667070,1768773042622,-226.321219,0.00016438,2]
[402667071,1768773042632,-226.321219,0.00016438,2]
[402667072,1768773042641,-226.321219,0.00016438,2]
[402667073,1768773042651,-226.321219,0.00016438,2]
[402667074,1768773042660,-226.321219,0.00016438,2]
[402667075,1768773042669,-226.321219,0.00016438,2]
[402667076,1768773042679,-151.0,0.00016438,2]
[402667077,1768773042688,-226.321219,0.00016438,2]
[402667078,1768773042697,-226.321219,0.00016438,2]
[402667079,1768773042706,-97.65574422,0.00016438,2]
[402667080,1768773042986,-128.66547478,0.00016438,2]
[402667081,1768773042995,-226.321219,0.00016438,2]
[402667082,1768773043005,-226.321219,0.00016438,2]
[402667083,1768773043015,-226.321219,0.00016438,2]
[402667084,1768773043024,-31.1106074,0.00016438,2]
[402667086,1768773043322,-195.2106116,0.00016438,2]
[402667087,1768773043332,-226.321219,0.00016438,2]
[402667088,1768773043342,-226.321219,0.00016438,2]
[402667089,1768773043351,-226.32121235,0.00016438,2]
[402667090,1768773043361,-171.590948,0.00016438,2]
[402667091,1768773043372,-151.0,0.00016438,2]
[402667092,1768773043382,-151.0,0.00016438,2]
[402667093,1768773043392,-151.0,0.00016438,2]
[402667094,1768773043401,-151.0,0.00016438,2]
[402667095,1768773043410,-27.1007953,0.00016438,2]
[402667119,1768774231689,-1261.0563028,0.00011309,2]
[402667120,1768774231698,-300.0,0.00011702,2]
[402667121,1768774231707,-438.9436972,0.00011702,2]
[402667122,1768774231717,-146.0563028,0.00011702,2]
[402667123,1768774231726,-6875.46475831,0.00011703,2]
[402667124,1768774231740,-1016.72874072,0.00011703,2]
[402667125,1768774231751,-2448.05179757,0.00011703,2]
[402667126,1768774231759,-616.17109106,0.00012174,2]
[402667127,1768774231769,-313.56884161,0.00012251,2]
[402667130,1768774231779,-520.3761399,0.00012328,2]
[402667132,1768774231791,-168.45980279,0.00012328,2]
[402667134,1768774231799,-7874.35,0.00012329,2]
[402667136,1768774231809,-6561.95,0.00012329,2]
[402667138,1768774231819,-5468.3,0.00012329,2]
[402667140,1768774231828,-4556.91,0.00012329,2]
[402667142,1768774231837,-3797.43,0.00012329,2]
[402667144,1768774231845,-3164.52,0.00012329,2]
[402667146,1768774231854,-2637.1,0.00012329,2]
[402667148,1768774231863,-2197.59,0.00012329,2]
[402667150,1768774231872,-1831.32,0.00012329,2]
[402667152,1768774231881,-1526.1,0.00012329,2]
[402667154,1768774231890,-1271.75,0.00012329,2]
[402667156,1768774231899,-1059.79,0.00012329,2]
[402667158,1768774231908,-883.16,0.00012329,2]
[402667160,1768774231917,-735.97,0.00012329,2]
[402667161,1768774231926,-613.31,0.00012329,2]
[402667162,1768774231935,-511.09,0.00012329,2]
[402667163,1768774231944,-425.91,0.00012329,2]
[402667164,1768774231953,-34025.18243601,0.00012329,2]
[402667165,1768774231961,-354.92,0.00012329,2]
[402667166,1768774231970,-295.77,0.00012329,2]
[402667167,1768774231979,-246.47,0.00012329,2]
[402667168,1768774231988,-205.39,0.00012329,2]
[402667169,1768774231997,-171.16,0.00012329,2]
[402667170,1768774232005,-855.84,0.00012329,2]
[402667171,1768774232014,-500.0,0.00012329,2]
[402667172,1768774232023,-500.0,0.00012329,2]
[402667173,1768774232032,-500.0,0.00012329,2]
[402667174,1768774232040,-500.0,0.00012329,2]
[402667175,1768774232050,-500.0,0.00012329,2]
[402667176,1768774232059,-500.0,0.00012329,2]
[402667177,1768774232067,-500.0,0.00012329,2]
[402667178,1768774232076,-500.0,0.00012329,2]
[402667179,1768774232085,-500.0,0.00012329,2]
[402667180,1768774232094,-500.0,0.00012329,2]
[402667181,1768774232103,-500.0,0.00012329,2]
[402667182,1768774232112,-500.0,0.00012329,2]
[402667183,1768774232122,-403.52856825,0.00012329,2]
[402667184,1768774232131,-162.489039,0.00012667,2]
[402667185,1768774232139,-420.0,0.00012851,2]
[402667186,1768774232148,-2808.15995948,0.000129,2]
[402667187,1768774232157,-500.0,0.00013273,2]
[402667188,1768774232166,-511.98074249,0.00013273,2]
[402667189,1768774232175,-500.0,0.00013273,2]
[402667190,1768774232183,-157.84376644,0.00013698,2]
[402667191,1768774232192,-93438.1372518,0.00013699,2]
[402667428,1768774240137,-388.23669877,0.00012328,2]
[402667430,1768774240146,-1013.02829632,0.00013699,2]
[402667550,1768775198447,469.47,0.00015,120]
[402667592,1768775431815,-597.0,0.00012517,2]
[402667594,1768775431825,-7043.4467597,0.00012517,2]
[402667596,1768775431834,-312.22733894,0.00012774,2]
[402667598,1768775431844,-1200.0,0.0001303,2]
[402667600,1768775431853,-300.0,0.00013032,2]
[402667602,1768775431862,-300.0,0.00013032,2]
[402667604,1768775431872,-500.0,0.00013033,2]
[402667606,1768775431881,-500.0,0.00013033,2]
[402667608,1768775431891,-3976.6899564,0.00013034,2]
[402667610,1768775431900,-500.0,0.00013273,2]
[402667612,1768775431910,-26806.59336756,0.00013273,2]
[402667614,1768775431919,-500.0,0.00013273,2]
[402667616,1768775431929,-186.40824943,0.000135,2]
[402667618,1768775431938,-345.211,0.00013578,2]
[402667620,1768775431947,-3045.84566065,0.0001358,2]
[402667622,1768775431958,-4628.32426676,0.0001358,2]
[402667624,1768775431970,-1326.0,0.0001358,2]
[402667626,1768775431981,-3952.29318159,0.0001358,2]
[402667628,1768775431990,-151.0,0.000136,2]
[402667631,1768775432000,-2146.06146391,0.00013699,2]
[402667634,1768775432011,-997.14197923,0.00013699,2]
[402667861,1768775440339,-1425.90075583,0.00013699,2]
[402667911,1768775446028,-757.077623,0.00013699,2]
[402667917,1768776002133,2455.0,0.000154,120]
[402667918,1768776330323,500.0,0.00011,30]
[402667951,1768776632076,-300.0,0.00012865,2]
[402667953,1768776632085,-140.41335325,0.00012865,2]
[402667954,1768776632097,-461.58664675,0.00012865,2]
[402667955,1768776632107,-182.18475793,0.00012865,2]
[402667956,1768776632119,-1017.81524207,0.00012865,2]
[402667957,1768776632128,-310.95409884,0.00012865,2]
[402667958,1768776632137,-168.12043759,0.00012866,2]
[402667959,1768776632148,-435.3408951,0.00012866,2]
[402667960,1768776632158,-500.0,0.00012866,2]
[402667961,1768776632168,-211.50317425,0.00012866,2]
[402667962,1768776632178,-409.65316864,0.00012866,2]
[402667963,1768776632187,-11805.22889001,0.00012867,2]
[402667964,1768776632199,-5019.28602569,0.00012867,2]
[402667965,1768776632208,-500.0,0.00013273,2]
[402667966,1768776632217,-230.8593707,0.00013451,2]
[402667967,1768776632227,-2457.13996451,0.00013599,2]
[402667968,1768776632236,-1040.10398434,0.00013697,2]
[402667969,1768776632246,-388.23669877,0.00013697,2]
[402667970,1768776632255,-276.169,0.00013698,2]
[402667971,1768776632264,-8676.34367114,0.00013698,2]
[402667972,1768776632275,-586.56220887,0.00013698,2]
[402668212,1768776638233,-7634.95212254,0.00013698,2]
[402668213,1768776638293,-466.65209633,0.00013698,2]
[402668214,1768776638303,-1974.87812441,0.00013699,2]
[402668215,1768776638313,-2948.9108932,0.00013699,2]
[402668216,1768776638322,-179.140237,0.00013699,2]
[402668217,1768776638332,-1000.0,0.00013699,2]
[402668218,1768776638341,-495.05018126,0.00013699,2]
[402668219,1768776638351,-194.72211749,0.00013699,2]
[402668220,1768776638360,-194.3662609,0.000138,2]
[402668221,1768776638370,-194.3662609,0.000138,2]
[402668222,1768776638380,-298.63622448,0.00013821,2]
[402668223,1768776638392,-701.36377552,0.00013821,2]
[402668224,1768776638402,-28.0516649,0.000139,2]
[402668225,1768776638414,-166.314596,0.000139,2]
[402668226,1768776638423,-194.3662609,0.000139,2]
[402668227,1768776638434,-194.3662609,0.000139,2]
[402668228,1768776638444,-194.3662609,0.000139,2]
[402668229,1768776638454,-388.7325218,0.000139,2]
[402668230,1768776638464,-194.3662609,0.000139,2]
[402668231,1768776638474,-194.3662609,0.000139,2]
[402668232,1768776638484,-2599.92833121,0.0001399,2]
[402668236,1768776640485,-328.57022792,0.0001399,2]
[402668237,1768776641487,3870.0,0.00011,30]
[402668238,1768776641510,1130.0,0.00011,30]
[402668257,1768777567444,-161.81,0.00012904,2]
[402668258,1768777595075,151.02,8.403e-05,2]
[402668259,1768777595501,169.89,8.703e-05,2]
[402668283,1768777832232,-417.16503418,0.00012904,2]
[402668291,1768777832292,-185.83496582,0.00012904,2]
[402668293,1768777832303,-108.63234003,0.00012904,2]
[402668295,1768777832315,-200.97455738,0.00012904,2]
[402668297,1768777832324,-496.3235252,0.00012904,2]
[402668299,1768777832334,-380.79107884,0.00013273,2]
[402668342,1768777838476,-119.20892116,0.00013273,2]
[402668344,1768777838490,-1085.3072019,0.00013439,2]
[402668346,1768777838501,-692.578112,0.00013439,2]
[402668347,1768777838512,-220.935,0.00013612,2]
[402668349,1768777838522,-300.0,0.00013698,2]
[402668350,1768777838532,-1013.0282953,0.00013699,2]
[402668351,1768777838543,-500.0,0.00013699,2]
[402668352,1768777838553,-500.0,0.00013699,2]
[402668353,1768777838564,-3130.47123354,0.00013699,2]
[402668354,1768777838575,-7615.35150336,0.00013699,2]
[402668356,1768777838587,-1415.18543344,0.00013699,2]
[402668358,1768777838598,-211.08631866,0.00013699,2]
[402668360,1768777838608,-2149.99746899,0.000138,2]
[402668362,1768777838617,-761.45533156,0.00013821,2]
[402668364,1768777838633,-238.54466844,0.00013821,2]
[402668366,1768777838643,-271.76568914,0.00013889,2]
[402668367,1768777838655,-10870.60444553,0.0001389,2]
[402668412,1768777842165,-11926.70648152,0.0001389,2]
[402668535,1768777843746,-507.49556332,0.0001389,2]
[402668536,1768777843756,-654.62226157,0.0001389,2]
[402668537,1768777843768,-958.85938964,0.0001389,2]
[402668538,1768777843778,-3722.3649,0.0001389,2]
[402668547,1768777846384,-874.06808288,0.0001389,2]
[402668548,1768777846396,-1610.19785751,0.0001389,2]
[402668549,1768777846505,-325979.42314916,0.0001389,2]
[402668550,1768777846519,-8218.81736236,0.0001389,2]
[402668552,1768777846531,-10707.07927695,0.0001389,2]
[402668555,1768777882346,-296.74224679,0.00012329,2]
[402668557,1768777926134,-172.62775321,0.00012329,2]
[402668558,1768777926159,-292.43,0.00012329,2]
[402668560,1768777932470,171.42,8.071e-05,2]
[402668561,1768777932905,195.91,8.37e-05,2]
[402668562,1768777933338,220.4,8.669e-05,2]
[402668563,1768777933741,244.88,8.968e-05,2]
[402668693,1768778916272,-222.95250616,0.0001,2]
[402668694,1768778918284,-315.79,0.0001,2]
[402668695,1768778919780,-294.63023231,0.0001,2]
[402668698,1768778946702,-268.56228605,9.9e-05,2]
[402668699,1768778951022,-160.44582613,9.9e-05,2]
[402668700,1768778952520,-265.1681274,9.9e-05,2]
[402668701,1768778956232,-171.01064442,9.9e-05,2]
[402668702,1768778956256,-16.1545486,0.0001,2]
[402668704,1768778992336,178.341726,0.00012268,120]
[402668706,1768779021167,-167.20145365,0.0001,2]
[402668707,1768779021190,-3.43279644,0.0001,2]
[402668760,1768779032515,-556.56720356,0.0001,2]
[402668762,1768779032524,-166.24,0.00010846,2]
[402668764,1768779032533,-189.99,0.00011247,2]
[402668765,1768779032542,-213.74,0.00011649,2]
[402668768,1768779032552,-237.49,0.00012051,2]
[402668769,1768779032561,-178.341726,0.00012268,2]
[402668771,1768779032570,-314.37256124,0.00012328,2]
[402668774,1768779032580,-300.0,0.00012328,2]
[402668775,1768779032589,-300.0,0.00012328,2]
[402668777,1768779032598,-224.31014998,0.00012328,2]
[402668779,1768779032610,-975.68985002,0.00012328,2]
[402668781,1768779032621,-342.4,0.00012329,2]
[402668783,1768779032631,-285.34,0.00012329,2]
[402668785,1768779032640,-237.78,0.00012329,2]
[402668787,1768779032650,-198.15,0.00012329,2]
[402668789,1768779032659,-165.13,0.00012329,2]
[402668791,1768779032668,-825.65,0.00012329,2]
[402668793,1768779032677,-217.4115047,0.0001264,2]
[402668795,1768779032686,-500.0,0.00013273,2]
[402668797,1768779032695,-500.0,0.00013273,2]
[402668798,1768779032704,-500.0,0.00013273,2]
[402668800,1768779032714,-501.85584568,0.00013273,2]
[402668803,1768779032729,-500.0,0.00013273,2]
[402668805,1768779032744,-241.59353127,0.00013273,2]
[402668806,1768779032754,-500.0,0.00013273,2]
[402668808,1768779032763,-500.0,0.00013273,2]
[402668810,1768779032772,-302.0,0.000135,2]
[402668812,1768779032782,-420.0,0.00013529,2]
[402668814,1768779032795,-1151.0,0.00013561,2]
[402668816,1768779032807,-98.89768083,0.00013689,2]
[402668819,1768779032823,-284.595,0.00013689,2]
[402668821,1768779032834,-116.50731917,0.00013689,2]
[402668823,1768779032844,-500.0,0.00013689,2]
[402668825,1768779032854,-500.0,0.00013689,2]
[402668827,1768779032865,-3789.85,0.0001369,2]
[402668829,1768779032875,-35435.52928996,0.0001369,2]
[402669028,1768779038687,-170.63425009,9.9e-05,2]
[402669029,1768779038698,-2165.73574991,0.0001369,2]
[402669030,1768779038711,-15730.99504182,0.0001369,2]
[402669031,1768779038723,-7653.47330229,0.0001369,2]
[402669032,1768779038736,-9165.13532162,0.0001369,2]
[402669033,1768779038752,-283.32,0.0001369,2]
[402669051,1768779040825,-929565.8112944,0.0001369,2]
[402669053,1768779040836,-179.140237,0.00013699,2]
[402669054,1768779040846,-1000.0,0.00013699,2]
[402669055,1768779040856,-500.0,0.00013699,2]
[402669057,1768779040866,-1809.35522155,0.000137,2]
[402669059,1768779040876,-1881.24778534,0.000137,2]
[402669061,1768779040888,-176.748,0.00013789,2]
[402669063,1768779040898,-194.3662609,0.000138,2]
[402669065,1768779040908,-997.53975942,0.00013821,2]
[402669066,1768779040918,-151.0,0.000139,2]
[402669067,1768779040928,-151.0,0.000139,2]
[402669069,1768779040938,-151.0,0.000139,2]
[402669071,1768779040948,-151.0,0.000139,2]